bitfinex/quotes_ETHUSD_20250622
["timestamp","ask_amount","ask_price","bid_price","bid_amount"]
[1750618212745,0.8412,2194.9,2194.4,4.55702509]
[1750618212955,0.8412,2194.9,2194.3,7.65982785]
[1750618213950,0.8412,2194.9,2194.3,3.1026664]
[1750618214149,0.23826358,2194.8,2194.5,4.55675159]
[1750618214319,0.7815,2194.9,2194.4,4.60255717]
[1750618214515,0.7815,2194.9,2194.5,4.55674395]
[1750618214718,0.23825802,2194.7,2194.5,4.55674395]
[1750618214914,0.23825802,2194.7,2194.6,4.55663902]
[1750618215338,0.23825802,2194.7,2194.5,5.74932972]
[1750618215647,0.8412,2194.9,2194.5,1.19256376]
[1750618215851,0.0597,2194.8,2194.4,4.55696073]
[1750618216148,0.0597,2194.8,2194.5,4.55681208]
[1750618216346,0.7815,2194.9,2194.5,4.60237545]
[1750618216541,0.8412,2194.9,2194.4,4.55702169]
[1750618216844,0.7815,2194.9,2194.4,4.55702169]
[1750618217051,0.0597,2194.8,2194.4,4.55702169]
[1750618217347,0.7815,2194.9,2194.5,4.55683737]
[1750618217652,0.8412,2194.9,2194.5,4.55683737]
[1750618217956,0.8412,2194.9,2194.4,4.60261679]
[1750618218149,0.8412,2194.9,2194.4,4.55694227]
[1750618218659,0.0597,2194.7,2194.3,6.54713128]
[1750618218853,10.0597,2194.8,2194.4,4.55703147]
[1750618219152,10.0,2194.8,2194.6,4.5565294]
[1750618219452,10.0,2194.8,2194.6,4.55663551]
[1750618219630,10.0,2194.8,2194.7,4.5564314]
[1750618219819,10.0,2194.8,2194.6,4.55653315]
[1750618220024,0.7815,2194.9,2194.7,4.5564314]
[1750618220228,10.0,2195.1,2194.7,5.01196113]
[1750618220423,10.0,2195.1,2194.7,4.55631799]
[1750618220642,10.0,2195.1,2194.8,4.55622335]
[1750618220841,10.8385,2195.2,2194.7,4.55631544]
[1750618221157,0.23823562,2195.0,2194.7,4.55631544]
[1750618221335,10.8385,2195.2,2194.7,4.55631544]
[1750618221536,0.23823493,2195.0,2194.7,4.55631544]
[1750618221736,0.23823493,2195.0,2194.6,5.3764294]
[1750618221921,0.0597,2195.0,2194.6,4.5564429]
[1750618222724,0.0617,2195.1,2194.5,4.55675534]
[1750618222922,0.0617,2194.9,2194.5,4.55675534]
[1750618223121,0.0617,2194.9,2194.6,4.5566277]
[1750618223321,0.0617,2194.9,2194.4,4.55701265]
[1750618223322,0.0617,2194.9,2194.5,4.5567344]
[1750618224065,0.0617,2194.9,2194.6,4.5566388]
[1750618224569,0.8166,2195.0,2194.7,4.55625259]
[1750618224973,0.8166,2195.0,2194.7,4.5563502]
[1750618225123,0.8783,2195.0,2194.7,4.5563502]
[1750618225631,0.8783,2195.0,2194.6,4.55655856]
[1750618228070,0.8166,2195.0,2194.7,4.5563092]
[1750618228265,0.8783,2195.0,2194.5,4.61603498]
[1750618228475,0.0617,2194.9,2194.6,4.5566298]
[1750618228967,0.8783,2195.0,2194.5,4.55673498]
[1750618229170,0.8166,2195.0,2194.6,0.501235]
[1750618229354,10.8166,2195.2,2194.8,0.0593]
[1750618229762,10.8166,2195.2,2194.8,4.61534977]
[1750618230070,10.8166,2195.2,2194.8,6.60534977]
[1750618230274,10.8166,2195.2,2194.8,1.99]
[1750618230275,10.8783,2195.2,2194.8,1.99]
[1750618230483,0.0617,2195.1,2194.8,1.99]
[1750618232283,10.8783,2195.2,2194.8,1.99]
[1750618232985,0.0617,2195.1,2194.8,1.99]
[1750618233281,1.90423,2195.1,2194.8,1.99]
[1750618233490,0.7905,2194.8,2194.4,1.99]
[1750618233691,0.0617,2194.5,2194.4,1.99]
[1750618234352,0.0617,2194.5,2193.8,0.8116]
[1750618234570,10.7905,2194.6,2193.9,1.99]
[1750618234571,0.7987,2194.4,2193.9,1.99]
[1750618234786,0.0617,2194.3,2193.9,2.64482877]
[1750618236076,0.7987,2194.4,2194.0,1.99]
[1750618236249,0.0617,2194.2,2193.8,4.55826521]
[1750618236578,0.0617,2194.2,2193.9,1.99]
[1750618237492,0.0617,2194.2,2193.9,6.54808392]
[1750618237705,0.0617,2194.2,2193.9,3.1896057]
[1750618237908,0.7987,2194.4,2193.9,1.99]
[1750618237909,0.0617,2194.3,2193.9,1.99]
[1750618238696,0.7987,2194.1,2193.8,1.99]
[1750618238997,0.0617,2194.0,2193.8,1.99]
[1750618239205,0.0617,2194.0,2193.7,1.99]
[1750618239772,0.0617,2194.0,2193.5,1.99]
[1750618240099,10.0617,2193.8,2193.3,1.99]
[1750618240286,0.0617,2193.7,2193.3,1.99]
[1750618240487,10.0,2193.8,2193.3,1.99]
[1750618240707,10.0,2193.8,2193.0,4.61915027]
[1750618240997,0.0617,2193.7,2193.1,1.991]
[1750618241198,0.0617,2193.7,2193.1,7.71364724]
[1750618241402,0.0617,2193.7,2193.2,1.991]
[1750618241765,10.0617,2193.8,2193.2,2.03659017]
[1750618241965,10.0617,2193.8,2193.2,4.55940158]
[1750618242709,10.0617,2193.8,2193.3,4.55916158]
[1750618242916,0.0617,2193.6,2193.0,1.991]
[1750618243082,0.7953,2193.5,2193.0,6.55082788]
[1750618243408,10.0617,2193.4,2193.0,6.55082788]
[1750618243989,10.0,2193.4,2193.2,4.55954611]
[1750618244403,10.0,2193.4,2193.1,4.55965252]
[1750618245412,10.0,2193.4,2193.2,4.55953225]
[1750618245616,10.7953,2193.5,2193.2,4.55953225]
[1750618245818,0.857,2193.5,2193.2,4.55953225]
[1750618246117,10.857,2193.5,2193.2,4.55953225]
[1750618247019,0.0617,2193.4,2192.7,4.56049632]
[1750618247321,0.7953,2193.0,2192.6,1.989]
[1750618247481,0.857,2192.7,2192.4,1.989]
[1750618247684,0.7953,2192.7,2192.4,1.989]
[1750618248018,0.7953,2192.7,2192.5,4.56090477]
[1750618248314,0.7953,2192.7,2192.5,5.67201435]
[1750618249814,0.7953,2192.7,2192.6,4.5607954]
[1750618250614,0.7953,2192.7,2192.6,4.66570078]
[1750618250816,0.7953,2192.7,2192.6,4.6200954]
[1750618253421,0.7953,2192.7,2192.6,4.5607954]
[1750618253648,0.7953,2192.7,2192.6,6.5497954]
[1750618254348,0.7953,2192.7,2192.6,4.5607954]
[1750618254548,0.0573,2193.1,2192.6,6.5497954]
[1750618254727,10.0,2193.2,2192.8,4.56025808]
[1750618254930,0.0573,2193.1,2192.8,4.56025808]
[1750618255431,10.0573,2193.2,2192.9,4.56012168]
[1750618255635,0.0573,2193.2,2192.9,4.56012168]
[1750618255953,0.23842556,2193.1,2193.0,4.60554591]
[1750618256158,0.23842556,2193.1,2193.0,5.47651354]
[1750618259234,10.0573,2193.5,2193.0,5.4765306]
[1750618259463,10.0573,2193.4,2193.0,4.55996352]
[1750618259666,10.0,2193.5,2192.9,4.5600562]
[1750618259973,0.0573,2193.4,2192.9,6.5490562]
[1750618260368,0.0573,2193.4,2193.0,4.55996352]
[1750618260868,0.0573,2193.4,2193.0,0.04559776]
[1750618261079,7.549,2193.5,2193.1,4.55955371]
[1750618261251,7.6063,2193.5,2193.1,4.55955371]
[1750618261576,7.549,2193.5,2193.0,4.55984531]
[1750618261772,0.0573,2193.4,2193.0,4.55984531]
[1750618261981,0.0573,2193.4,2192.0,15.94899569]
[1750618261982,0.55,2193.3,2192.0,10.80005428]
[1750618262147,0.0573,2193.0,2192.6,4.56065276]
[1750618262357,0.0573,2192.8,2192.6,4.56077921]
[1750618263276,0.0573,2192.8,2192.5,4.56090806]
[1750618263486,0.0573,2192.8,2192.6,4.56077705]
[1750618263655,7.548,2193.3,2192.9,4.56002774]
[1750618263974,0.0573,2193.1,2192.6,4.56069813]
[1750618264175,0.0573,2193.1,2192.8,4.56036546]
[1750618264574,10.0,2193.2,2193.0,4.55993213]
[1750618264782,10.0,2193.2,2192.6,4.56070863]
[1750618264975,10.0,2193.2,2192.7,5.01652243]
[1750618265179,10.0,2193.2,2192.7,5.01659181]
[1750618265401,0.0573,2193.2,2192.8,4.56030806]
[1750618265576,10.0573,2193.2,2192.9,4.56001062]
[1750618265905,10.0573,2193.2,2192.7,0.45607086]
[1750618266098,10.0573,2193.2,2192.9,4.56011642]
[1750618266315,7.6053,2193.2,2192.8,4.56037942]
[1750618266485,7.6053,2193.2,2192.9,4.56002273]
[1750618266795,7.6053,2193.2,2192.8,5.06791042]
[1750618267096,7.6053,2193.2,2192.9,4.55996795]
[1750618267299,7.6053,2193.2,2193.0,4.55994902]
[1750618267483,10.55,2193.6,2193.0,4.55994902]
[1750618267686,0.23842536,2193.2,2193.1,4.55961694]
[1750618267891,10.0,2193.4,2193.0,4.55991329]
[1750618268068,10.0,2193.4,2193.1,4.55959342]
[1750618268396,0.23840338,2193.4,2193.3,4.55928452]
[1750618268598,0.23840338,2193.4,2193.3,0.91188281]
[1750618268800,10.0573,2193.7,2193.3,0.91188281]
[1750618268967,0.23838739,2193.4,2193.3,4.5593398]
[1750618270782,0.23838739,2193.4,2193.3,4.6193398]
[1750618270986,10.0,2193.7,2193.5,4.5588638]
[1750618271503,10.29567591,2193.7,2193.4,4.55902562]
[1750618273509,10.0,2193.7,2193.4,4.55902562]
[1750618273682,0.23837332,2193.6,2193.4,4.55902562]
[1750618273883,0.23837332,2193.6,2193.4,5.66987707]
[1750618275525,0.23837332,2193.6,2193.4,1.11085145]
[1750618275727,0.0573,2193.5,2193.3,6.54932401]
[1750618275929,0.23837332,2193.6,2193.3,1.99]
[1750618276228,0.29567332,2193.6,2193.3,1.99]
[1750618276424,0.0573,2193.6,2193.3,6.54931412]
[1750618276633,0.0573,2193.6,2193.3,6.54631412]
[1750618276832,0.0573,2193.6,2193.3,7.65689073]
[1750618277539,7.546,2193.7,2193.4,4.55907568]
[1750618277736,7.6033,2193.7,2193.4,4.55907568]
[1750618278097,0.0573,2193.6,2193.0,4.55984061]
[1750618278318,0.0573,2193.6,2193.1,6.54664655]
[1750618278530,0.0573,2193.5,2193.1,1.987]
[1750618278728,0.0573,2193.5,2192.8,5.06789792]
[1750618278729,0.55,2193.4,2192.8,1.987]
[1750618278895,0.0573,2193.1,2192.8,1.987]
[1750618279932,10.0,2193.2,2192.8,1.987]
[1750618279933,10.0,2193.2,2192.8,6.54727592]
[1750618280120,7.546,2193.7,2192.9,0.10559694]
[1750618280337,10.0,2193.6,2193.0,4.55976981]
[1750618280540,10.0573,2193.6,2193.1,0.04559214]
[1750618280736,10.0573,2193.6,2193.1,4.60532797]
[1750618281119,10.0573,2193.6,2193.1,0.04559214]
[1750618281319,10.0,2193.6,2193.1,5.54868465]
[1750618281619,10.0573,2193.6,2193.1,5.54868465]
[1750618281951,10.0573,2193.6,2193.1,0.98907859]
[1750618282453,0.0602,2193.5,2192.9,0.66531416]
[1750618282753,0.0602,2193.5,2192.9,5.22544246]
[1750618285457,10.0,2193.6,2193.0,1.987]
[1750618285458,0.0602,2193.3,2193.0,1.987]
[1750618285761,0.0602,2193.1,2192.8,1.987]
[1750618286269,10.0,2193.2,2192.8,6.59296229]
[1750618286416,10.0,2193.2,2192.8,6.54727131]
[1750618286756,10.0602,2193.2,2192.8,6.54727131]
[1750618287760,0.0602,2193.1,2192.8,1.987]
[1750618287971,0.0602,2193.1,2192.8,7.20811906]
[1750618288754,0.0602,2193.1,2192.8,2.64775331]
[1750618288963,0.0602,2193.1,2192.8,7.20812899]
[1750618289271,0.0602,2193.1,2192.8,7.20912899]
[1750618289663,0.0602,2193.1,2192.8,2.64875331]
[1750618289864,0.0602,2193.1,2192.8,7.20911544]
[1750618290472,0.0602,2193.1,2192.8,0.66075331]
[1750618290673,0.0602,2193.1,2192.7,6.54856779]
[1750618291054,0.882,2193.0,2192.7,6.54856779]
[1750618293088,0.882,2193.0,2192.8,4.56035811]
[1750618293244,7.545,2193.2,2193.0,4.55986787]
[1750618294950,7.545,2193.2,2192.9,4.56017146]
[1750618295146,7.545,2193.2,2192.7,1.988]
[1750618295147,0.0602,2193.0,2192.7,1.988]
[1750618295398,0.0602,2193.0,2192.7,6.8288615]
[1750618295758,0.0602,2193.0,2192.8,4.56034657]
[1750618296271,0.0602,2193.0,2192.9,4.56017146]
[1750618296472,10.8218,2193.1,2192.9,4.56017146]
[1750618296671,10.0,2193.1,2192.9,5.69906026]
[1750618297970,10.0602,2193.1,2192.9,5.69906026]
[1750618298395,10.0602,2193.1,2192.9,1.1388888]
[1750618298563,10.0602,2193.1,2192.7,6.82884166]
[1750618298759,10.0602,2193.1,2192.7,2.26837]
[1750618299107,10.0602,2193.1,2192.8,4.56024851]
[1750618299282,10.0602,2193.1,2192.8,4.60584773]
[1750618299485,10.0602,2193.1,2192.9,4.56011351]
[1750618300508,10.0602,2193.1,2192.8,4.56024851]
[1750618300684,10.0602,2193.1,2192.8,5.83233767]
[1750618301204,0.0602,2192.9,2192.3,1.988]
[1750618301362,10.0,2192.7,2192.3,1.988]
[1750618301714,0.0602,2192.4,2192.0,10.35351361]
[1750618301867,10.0,2192.3,2192.1,4.56173801]
[1750618302228,10.0,2192.3,2192.2,4.56162758]
[1750618302368,0.23850458,2192.3,2192.2,4.56162758]
[1750618302562,10.0,2192.4,2192.2,4.56162758]
[1750618302759,10.0,2192.4,2192.1,6.0532826]
[1750618302989,0.0602,2192.3,2192.0,10.35351361]
[1750618303300,0.0602,2192.3,2192.0,14.91544919]
[1750618303488,0.0602,2192.3,2192.0,10.35351361]
[1750618303797,0.0602,2192.3,2192.0,14.9155492]
[1750618304204,0.0602,2192.3,2192.1,4.56178427]
[1750618304669,10.0602,2192.4,2192.0,14.91554013]
[1750618304874,10.0602,2192.4,2192.2,4.56162758]
[1750618305300,10.0,2192.4,2192.1,18.0]
[1750618305614,0.23850298,2192.4,2192.3,4.56124559]
[1750618306076,10.0,2192.5,2192.4,4.56112001]
[1750618306674,10.23849093,2192.5,2192.4,4.56112001]
[1750618307072,10.0,2192.5,2192.4,4.56112001]
[1750618307275,0.8082,2192.7,2192.5,4.560927]
[1750618307479,10.0,2192.6,2192.5,4.56080388]
[1750618307866,0.8082,2193.0,2192.7,4.56042715]
[1750618308067,8.4124,2193.0,2192.7,4.56042715]
[1750618310522,8.4114,2193.0,2192.7,4.56042715]
[1750618310688,0.8684,2193.0,2192.7,4.56042715]
[1750618310986,8.4114,2193.0,2192.7,4.56042715]
[1750618311186,8.3512,2193.0,2192.7,5.5545427]
[1750618311602,7.6032,2193.0,2192.7,5.55459026]
[1750618311802,0.0602,2192.9,2192.7,0.99411555]
[1750618312624,7.543,2193.0,2192.7,5.55469032]
[1750618312914,7.603,2193.0,2192.7,0.99411555]
[1750618313420,7.603,2193.0,2192.7,5.55467508]
[1750618314326,7.603,2193.0,2192.7,0.99411555]
[1750618314621,7.603,2193.0,2192.6,4.5606934]
[1750618315325,0.06,2192.8,2192.1,0.7746]
[1750618315618,7.543,2192.7,2192.5,4.56088305]
[1750618315786,0.06,2193.1,2192.5,1.68680609]
[1750618315987,17.542,2193.2,2192.6,0.04560338]
[1750618316218,17.542,2193.2,2192.7,4.56058474]
[1750618316418,0.06,2193.1,2192.8,4.5603488]
[1750618317926,0.06,2193.1,2192.7,4.56047801]
[1750618318132,0.06,2193.1,2192.8,4.56035602]
[1750618319539,0.06,2193.1,2192.7,4.56049432]
[1750618319828,17.542,2193.2,2192.7,0.99197008]
[1750618320038,0.06,2193.1,2192.7,4.56057874]
[1750618320223,0.7757,2193.1,2192.7,4.56057874]
[1750618320399,0.06,2193.0,2192.7,4.56057874]
[1750618320829,0.06,2193.0,2192.6,4.56067619]
[1750618321031,0.7757,2193.1,2192.6,4.56067619]
[1750618321412,0.06,2193.0,2192.6,4.56077422]
[1750618321634,10.0,2192.8,2192.5,4.56088507]
[1750618321826,10.06,2192.8,2192.5,4.56088507]
[1750618322708,10.06,2192.8,2192.3,9.76922698]
[1750618322914,10.0,2192.8,2192.7,4.5605874]
[1750618323153,10.0,2193.2,2192.7,0.7746]
[1750618323313,10.0,2193.2,2192.9,4.55996448]
[1750618323511,17.541,2193.2,2192.9,4.55996448]
[1750618323999,17.541,2193.2,2192.4,2.39150691]
[1750618324198,17.541,2193.2,2192.7,4.5605707]
[1750618324835,0.06,2193.1,2192.8,4.56037488]
[1750618325041,10.0,2193.2,2192.9,0.04560103]
[1750618325243,10.0,2193.2,2193.0,4.55985647]
[1750618325457,10.0,2193.2,2192.9,4.56008096]
[1750618325663,10.0,2193.2,2193.0,4.5599356]
[1750618325896,10.0,2193.2,2192.9,5.55484866]
[1750618325897,10.0,2193.2,2193.1,4.55975559]
[1750618326178,0.23842956,2193.2,2193.1,4.55972589]
[1750618326530,10.23842956,2193.2,2193.1,4.55972589]
[1750618326841,0.23842956,2193.2,2193.1,4.55972589]
[1750618327063,0.23842956,2193.2,2193.1,5.76966062]
[1750618327773,10.0,2193.3,2193.2,4.55954769]
[1750618328269,10.0,2193.3,2193.1,5.76959442]
[1750618328561,10.06,2193.3,2193.0,4.55991472]
[1750618328754,10.0,2193.3,2193.1,4.5596469]
[1750618329175,10.0,2193.3,2192.9,2.0188]
[1750618329357,0.2384097,2193.5,2193.4,4.55900598]
[1750618329669,10.2384097,2193.5,2193.4,5.47083942]
[1750618329877,10.2384097,2193.5,2193.4,4.55900598]
[1750618330040,10.2384097,2193.5,2193.3,4.55926887]
[1750618330237,10.2384097,2193.5,2193.3,0.04558835]
[1750618330434,0.2384097,2193.5,2193.3,4.55925696]
[1750618330635,0.8103,2193.5,2193.1,6.54469975]
[1750618330834,0.7503,2193.5,2193.1,6.54469975]
[1750618331036,0.7503,2193.3,2192.5,0.8072]
[1750618331265,0.06,2193.0,2192.7,4.56056829]
[1750618331763,0.06,2192.9,2192.6,6.54578237]
[1750618331952,7.539,2192.9,2192.6,6.54578237]
[1750618332153,10.06,2192.8,2192.5,4.56096852]
[1750618332373,10.0,2192.8,2192.5,4.56096852]
[1750618332873,10.0,2192.8,2192.5,4.56084908]
[1750618333870,10.06,2192.8,2192.5,4.56084908]
[1750618334969,0.06,2192.7,2192.5,4.56084908]
[1750618335147,0.06,2192.7,2192.3,6.5462672]
[1750618335348,10.0,2192.8,2192.6,4.56076785]
[1750618335555,10.06,2192.8,2192.5,4.56089359]
[1750618336483,10.06,2192.8,2192.6,4.56079528]
[1750618338780,10.06,2192.8,2192.5,4.56089809]
[1750618339886,10.0,2192.8,2192.4,5.29643457]
[1750618340083,0.06,2192.7,2192.4,5.29643457]
[1750618340288,0.06,2192.7,2192.5,5.74528199]
[1750618340502,0.06,2192.7,2192.5,1.18428043]
[1750618341175,0.06,2192.7,2192.5,5.74518852]
[1750618341573,0.7733,2192.6,2192.4,5.29646204]
[1750618341773,0.06,2192.5,2192.4,5.29646204]
[1750618342167,0.7733,2192.6,2192.4,5.29646204]
[1750618342368,0.8353,2192.6,2192.4,5.29646204]
[1750618342768,0.7733,2192.6,2192.5,4.56100342]
[1750618343066,10.8353,2192.8,2192.5,4.56100342]
[1750618343457,10.7733,2192.8,2192.6,4.56078646]
[1750618345260,10.8353,2192.8,2192.5,5.74513319]
[1750618345467,10.7733,2192.8,2192.5,5.74513319]
[1750618345688,10.7733,2192.8,2192.4,4.56111803]
[1750618345894,0.062,2192.7,2192.4,4.56111803]
[1750618346796,10.7733,2192.8,2192.4,4.56111803]
[1750618347096,0.062,2192.7,2192.4,4.56110767]
[1750618348286,0.062,2192.7,2192.5,4.56090436]
[1750618348480,10.7733,2192.8,2192.5,5.67161594]
[1750618348686,10.8353,2192.8,2192.5,5.67161594]
[1750618350166,10.7733,2192.8,2192.5,5.67161594]
[1750618350368,0.062,2192.7,2192.5,5.67161594]
[1750618351900,0.062,2192.7,2192.6,4.5607954]
[1750618352204,9.895,2193.3,2192.6,4.5607954]
[1750618352205,8.3767,2193.2,2192.9,4.56007341]
[1750618352408,0.062,2193.0,2192.5,4.56082739]
[1750618352595,0.062,2192.8,2192.6,4.56073459]
[1750618353190,10.8397,2193.1,2192.6,0.10270321]
[1750618353397,10.0,2193.2,2193.0,4.55977219]
[1750618353579,10.0,2193.2,2193.1,4.55975559]
[1750618354705,7.599,2193.4,2193.1,4.55963884]
[1750618354929,10.0,2193.3,2193.1,4.55963884]
[1750618355107,10.062,2193.3,2193.1,4.55963884]
[1750618355637,0.062,2193.2,2192.8,1.983]
[1750618355798,0.062,2193.1,2192.6,0.54784648]
[1750618356007,0.062,2193.0,2192.7,4.56057799]
[1750618356223,7.536,2193.1,2192.6,6.54369477]
[1750618356425,0.062,2193.0,2192.6,1.983]
[1750618356721,0.062,2192.9,2192.5,6.54387898]
[1750618356911,7.598,2192.8,2192.5,2.6373879]
[1750618357098,7.598,2192.8,2192.6,4.56078562]
[1750618357099,7.536,2192.8,2192.6,4.56078562]
[1750618357700,7.536,2192.8,2192.6,4.56064226]
[1750618358122,7.536,2192.8,2192.7,4.5605874]
[1750618358826,7.598,2192.8,2192.5,6.54394966]
[1750618359006,0.062,2192.7,2192.5,6.54398675]
[1750618359206,0.062,2192.7,2192.6,4.5607954]
[1750618359410,7.536,2193.0,2192.5,3.09351872]
[1750618359597,0.8201,2192.8,2192.5,1.983]
[1750618359784,0.062,2192.7,2192.5,6.54399952]
[1750618359988,0.062,2192.7,2192.5,4.56099952]
[1750618360408,0.8821,2192.8,2192.5,4.56099952]
[1750618361725,0.8821,2192.8,2192.6,4.5607926]
[1750618362227,0.8821,2192.8,2192.5,4.56088656]
[1750618362631,8.3561,2193.0,2192.8,4.56030145]
[1750618362826,8.3561,2193.0,2192.5,1.11050786]
[1750618363037,0.8201,2193.0,2192.8,4.56037942]
[1750618363242,0.8821,2193.2,2192.9,4.56005352]
[1750618363408,0.062,2193.2,2193.0,4.55984846]
[1750618363802,0.062,2193.2,2192.9,4.56005296]
[1750618364043,1.3701,2193.6,2192.9,4.56014906]
[1750618364247,8.67301,2193.5,2193.0,4.55984739]
[1750618364542,0.062,2193.3,2192.9,4.56007983]
[1750618364906,0.062,2193.3,2193.0,4.55991538]
[1750618365143,10.0,2193.2,2193.1,4.55975559]
[1750618365437,0.23843327,2193.3,2193.0,4.55986617]
[1750618365659,0.23843327,2193.3,2193.0,4.55981518]
[1750618365864,0.23843327,2193.3,2193.1,4.55975122]
[1750618366046,17.535,2193.5,2193.1,4.55975122]
[1750618366249,0.062,2193.4,2193.1,4.55975122]
[1750618367525,0.062,2193.4,2193.0,4.55985067]
[1750618367727,0.062,2193.4,2193.1,4.55969584]
[1750618368140,0.062,2193.4,2193.0,4.55987614]
[1750618370579,19.42049,2193.5,2193.0,4.55987614]
[1750618370739,0.062,2193.4,2193.0,4.55987614]
[1750618371284,0.062,2193.4,2193.1,4.55974006]
[1750618372181,19.42049,2193.5,2192.8,2.8038]
[1750618372397,8.3039,2193.6,2193.3,4.5593398]
[1750618372684,10.0,2193.5,2193.4,4.55913194]
[1750618372859,0.7699,2193.6,2193.4,4.55913194]
[1750618373055,10.0,2193.7,2193.4,4.55902123]
[1750618373277,0.8529,2193.9,2193.6,4.55869033]
[1750618373454,0.793,2193.9,2193.5,4.55877723]
[1750618373661,0.793,2193.9,2193.5,5.71996769]
[1750618373882,8.327,2193.9,2193.5,5.71996769]
[1750618374073,8.327,2193.9,2193.6,4.55856149]
[1750618374258,1.343,2194.3,2193.7,4.55849597]
[1750618374584,0.23837552,2193.8,2193.7,4.55849597]
[1750618374881,0.0599,2194.2,2193.8,4.55817016]
[1750618375068,0.0599,2194.1,2193.8,4.55817016]
[1750618375273,0.0599,2194.0,2193.7,1.98]
[1750618375972,0.7597,2193.8,2193.3,0.45195573]
[1750618376175,0.0599,2193.7,2193.2,2.8027]
[1750618376356,0.0599,2193.7,2193.4,4.55899445]
[1750618376696,0.8196,2193.8,2193.5,4.55887112]
[1750618377050,0.7597,2193.8,2193.4,4.55904555]
[1750618377280,0.7597,2193.8,2193.5,4.55891277]
[1750618377481,0.7597,2193.8,2193.5,4.55880916]
[1750618377783,0.8196,2193.8,2193.4,4.5590245]
[1750618377980,0.8196,2193.8,2193.4,5.77915103]
[1750618378480,0.8196,2193.8,2193.5,4.55889912]
[1750618378782,0.8196,2193.8,2193.4,5.77915254]
[1750618379304,0.8196,2193.8,2193.5,4.55891436]
[1750618379583,0.7597,2193.8,2193.6,4.55867078]
[1750618379945,7.532,2193.9,2193.6,5.59245851]
[1750618380253,8.3601,2194.0,2193.6,5.59245851]
[1750618380653,8.3002,2194.0,2193.7,4.55850138]
[1750618381079,0.8281,2194.2,2193.6,1.03378773]
[1750618381288,10.0,2194.0,2193.9,4.55796713]
[1750618381458,0.7682,2194.2,2193.9,4.55796713]
[1750618381782,0.7682,2194.2,2194.0,4.55782599]
[1750618382003,10.0,2194.3,2193.9,0.7925]
[1750618382299,10.0599,2194.3,2193.9,4.55809289]
[1750618382497,0.0599,2194.2,2193.8,5.35066918]
[1750618382717,10.0,2194.3,2193.9,5.29102361]
[1750618382923,0.7682,2194.4,2194.0,4.55787894]
[1750618383088,10.0,2194.3,2194.0,4.55787894]
[1750618383800,10.0,2194.3,2194.0,4.55779409]
[1750618384001,7.531,2194.5,2194.1,4.55755676]
[1750618384301,0.7682,2194.6,2194.3,4.55725712]
[1750618384868,10.0,2194.6,2194.4,4.55703472]
[1750618385090,0.23822026,2194.7,2194.4,4.55703472]
[1750618385276,10.23822026,2194.7,2194.4,4.55703472]
[1750618385808,10.23820591,2194.7,2194.4,4.55703472]
[1750618385969,10.29810591,2194.7,2194.4,1.1885884]
[1750618386780,10.23820591,2194.7,2194.4,5.74548857]
[1750618386984,10.0,2194.7,2194.4,5.74548857]
[1750618387206,10.0,2194.7,2194.5,5.58708099]
[1750618388009,0.23819207,2195.0,2194.7,4.55632098]
[1750618388313,0.23819207,2195.0,2194.9,4.55601621]
[1750618388518,0.7602,2195.6,2195.1,4.55547703]
[1750618388706,0.7602,2195.6,2195.1,1.979]
[1750618388874,0.0599,2195.5,2195.1,7.27050564]
[1750618389076,0.7602,2195.6,2195.2,4.55538724]
[1750618389324,0.23812431,2195.5,2195.4,4.55497859]
[1750618389617,8.2892,2196.0,2195.6,4.55448749]
[1750618389814,0.23807859,2196.0,2195.8,4.55402627]
[1750618390000,0.7602,2196.2,2195.9,5.5517836]
[1750618390306,8.2892,2196.4,2195.9,5.5517836]
[1750618390623,0.7602,2196.1,2195.4,0.8245]
[1750618390818,0.7602,2195.7,2195.1,1.979]
[1750618391013,7.527,2195.6,2195.1,1.979]
[1750618391180,0.0599,2195.5,2195.1,1.979]
[1750618392000,0.0599,2195.5,2195.0,10.952]
[1750618392198,0.0599,2195.4,2195.0,12.931]
[1750618392424,0.0599,2195.4,2195.0,17.48680416]
[1750618392910,7.5869,2195.6,2195.1,4.5555729]
[1750618393215,7.5369,2195.6,2195.1,4.5555729]
[1750618393617,7.477,2195.6,2195.1,4.66072418]
[1750618393917,7.5369,2195.6,2195.2,2.214752]
[1750618394119,10.7602,2195.7,2195.3,4.55516089]
[1750618395320,10.7602,2195.7,2195.2,6.77005919]
[1750618395497,0.7602,2195.7,2195.2,3.031852]
[1750618395702,0.7602,2195.7,2195.3,4.55506696]
[1750618395918,0.8201,2195.7,2195.3,1.2655768]
[1750618396287,0.8201,2195.7,2195.3,5.82074178]
[1750618396482,0.7602,2195.7,2195.3,1.2655768]
[1750618397025,0.7602,2195.7,2195.3,5.82073177]
[1750618398131,7.5859,2195.9,2195.4,4.55496108]
[1750618398132,8.3299,2195.9,2195.4,4.55496108]
[1750618398430,0.8039,2196.1,2195.5,0.58205379]
[1750618398587,10.8039,2196.1,2195.3,1.2655768]
[1750618398792,10.8039,2196.1,2195.2,9.56522013]
[1750618398793,0.8638,2195.9,2195.2,9.56522013]
[1750618399243,0.0599,2195.7,2195.2,2.214752]
[1750618399530,0.0599,2195.0,2194.5,5.00993159]
[1750618399730,0.0599,2194.9,2194.3,2.7961]
[1750618399940,0.0599,2194.9,2194.5,4.55668322]
[1750618400234,7.528,2195.0,2194.6,0.45566832]
[1750618400235,7.5879,2195.0,2194.6,0.45566832]
[1750618400403,7.528,2195.0,2194.6,0.45566832]
[1750618400604,7.5879,2195.0,2194.6,0.45566832]
[1750618401410,0.0599,2194.8,2194.3,1.979]
[1750618401595,10.7674,2194.9,2194.3,1.979]
[1750618401802,7.548,2194.8,2194.5,4.55672766]
[1750618402110,7.548,2194.8,2194.4,4.55697957]
[1750618402291,7.6101,2194.8,2194.5,0.73787796]
[1750618402808,0.55,2195.1,2194.5,0.73787796]